Cogmind - Beta 11.1 @@@ ROGUE MODE // 2022.06.24 @ 17:42:17 Player: Cyurio Result: Self-destructed Performance ------------- Evolutions (1) 500 Regions Visited (2) 400 Robots Destroyed (37) 185 Value Destroyed (1025) 1025 Prototype IDs (0) 0 Alien Tech Used (0) 0 Bonus (47) 47 TOTAL SCORE: 2157 Bonus ------- High Alert Combat Kills 47 Cogmind --------- Core Integrity 140/400 Matter 6/300 Energy 158/265 System Corruption 0% Temperature Cool (0) Movement Walking (190) Ox1 Location -9/Materials Parts ------- > --- POWER (1) -------- Improved Ion Engine > --- PROPULSION (4) --- Aluminum Leg > --- UTILITY (2) ------ Small Storage Unit > --- WEAPON (2) ------- Mini Grenade Launcher > --- INVENTORY (8) ---- Compact Wheel Sensor Array Signal Interpreter Datajack Peak State ------------ > --- POWER ------------ Ion Engine > --- PROPULSION ------- Aluminum Leg Improved Aluminum Leg > --- UTILITY ---------- Small Storage Unit Propulsion Shielding > --- WEAPON ----------- Mini Grenade Launcher Mini Grenade Launcher > --- INVENTORY -------- Compact Wheel Sensor Array Datajack [Rating: 10] Favorites ----------- Power Ion Engine Engine Ion Engine Propulsion Aluminum Leg Leg Aluminum Leg Utility Small Storage Unit Storage Small Storage Unit Protection Medium Armor Plating Weapon Light Assault Rifle Energy Gun Small Laser Ballistic Gun Light Assault Rifle Launcher Mini Grenade Launcher Build | -11 -10 -9 ------- Run | Scr Mat Mat Slots Evolved 2 | . . 2 Power . | . . . Propulsion 2 | . . 2 Utility . | . . . Weapon . | . . . Parts Attached 27 | . 12 15 Power 4 | . 2 2 Engine 4 | . 2 2 Core . | . . . Reactor . | . . . Propulsion 13 | . 5 8 Treads . | . . . Leg 13 | . 5 8 Wheel . | . . . Hover . | . . . Flight . | . . . Utility 2 | . 1 1 Device . | . . . Storage . | . . . Processor . | . . . Hackware . | . . . Protection 2 | . 1 1 Artifact . | . . . Weapon 8 | . 4 4 Energy Gun 2 | . . 2 Energy Cannon . | . . . Ballistic Gun 1 | . 1 . Ballistic Cannon . | . . . Launcher 5 | . 3 2 Special Weapon . | . . . Impact Weapon . | . . . Slashing Weapon . | . . . Piercing Weapon . | . . . Special Melee Weapon . | . . . Unidentified Prototypes . | . . . Parts Lost 17 | . 3 14 Power 2 | . . 2 Propulsion 8 | . 1 7 Utility 2 | . 1 1 Weapon 5 | . 1 4 Highest Loss Streak 8 | . 1 8 To Critical Strikes . | . . . Average Slot Usage (%) 81 | . 89 64 Engine 12 | . 14 8 Leg 26 | . 27 24 Storage 13 | . 14 11 Protection 5 | . 5 4 Energy Gun 10 | . 13 2 Ballistic Gun 9 | . 12 3 Launcher 3 | . . 9 Naked Turns . | . . . Heaviest Build 19 | 11 19 13 Greatest Support 43 | 20 20 43 Greatest Overweight (x) 3 | . 3 2 Average Overweight (x) . | . . . Largest Inventory Capacity 8 | 8 8 8 Average Capacity 8 | 8 8 8 Most Carried 8 | 5 8 7 Average Carried 7 | 5 7 5 Final Capacity 8 | 8 8 8 Final Carried 8 | 4 8 4 Class Distribution -------------------- 96% | Mutant 3% | Scavenger-Mutant Dominant Class ---------------- Mutant | -10/Materials Mutant | -9/Materials Resources | -11 -10 -9 ----------- Run | Scr Mat Mat Matter Collected 514 | 200 116 198 Remotely . | . . . Salvage Created 1033 | . 471 562 Parts 55 | . 30 25 Haulers Intercepted 1 | . . 1 Recyclers Shooed 5 | . 1 4 Parts Field Recycled . | . . . Retrieved Matter . | . . . Parts Self-Destructed . | . . . Prevented . | . . . Kills | -11 -10 -9 ------- Run | Scr Mat Mat Combat Hostiles Destroyed 27 | . 13 14 Guns 15 | . 10 5 AOE 12 | . 3 9 Classes Destroyed 10 | . 3 7 Worker 4 | . . 4 Builder 1 | . . 1 Hauler 1 | . . 1 Recycler 2 | . . 2 Operator 1 | . . 1 Watcher 1 | . 1 . Swarmer 3 | . 3 . Grunt 20 | . 10 10 Duelist 2 | . . 2 Sentry 2 | . . 2 Best Kill Streak 13 | . 5 13 Combat Bots Only 6 | . 4 6 Max Kills in Single Turn 4 | . 2 4 Gunslinging . | . . . Exploded 2 | . 2 2 Melee . | . . . Uniques/NPCs Destroyed . | . . . Combat | -11 -10 -9 -------- Run | Scr Mat Mat Damage Taken 1973 | . 851 1122 Core 458 | . 198 260 Absorbed by Shields . | . . . Redirected to Shielding 53 | . . 53 Core Remaining (%) 60 | 100 20 . Volleys Fired 103 | . 64 39 Largest 2 | . 2 2 Hottest 80 | . 80 60 Shots Fired 178 | . 115 63 Gun 142 | . 110 32 Cannon . | . . . Launcher 36 | . 5 31 Special . | . . . Kinetic 62 | . 51 11 Thermal 72 | . 51 21 Explosive 36 | . 5 31 Electromagnetic 8 | . 8 . Robot Hit Streak 13 | . 13 9 Robot Miss Streak 4 | . 3 4 Penetration Max . | . . . Secondary Targets 2 | . 2 . Max Gunslinging Chain 1 | . 1 . Shots Hit Robots 110 | . 73 37 Core Hits 72 | . 30 42 Critical Kills . | . . . Critical Parts Destroyed . | . . . Critical Strikes . | . . . Melee Attacks . | . . . Impact . | . . . Slashing . | . . . Piercing . | . . . Sneak Attacks . | . . . Combat Hostiles . | . . . Follow-up Attacks . | . . . Damage Inflicted 2684 | . 937 1747 Guns 980 | . 737 243 Cannons . | . . . Explosions 1701 | . 200 1501 Melee . | . . . Ramming 3 | . . 3 Kinetic 321 | . 270 51 Thermal 559 | . 367 192 Explosive 1701 | . 200 1501 Electromagnetic 100 | . 100 . Impact . | . . . Slashing . | . . . Piercing . | . . . Highest Corruption . | . . . Average Corruption . | . . . Corruption Purged . | . . . Corruption Blocked . | . . . Overload Shots . | . . . Overflow Damage 41 | . 28 13 Projectiles . | . . . Explosions 41 | . 28 13 Melee . | . . . Knockbacks . | . . . Impact . | . . . Kinetic . | . . . Secondary . | . . . Self-Inflicted Damage 62 | . 22 40 Shots 4 | . 2 2 Rammed . | . . . Targets Rammed 1 | . . 1 Kicked 1 | . . 1 Crushed . | . . . Highest Temperature 234 | . 234 40 Average Temperature 68 | . 82 13 Received Heat Transfer 729 | . 417 312 Effects 1 | . 1 . Interference 1 | . 1 . Siege Activations . | . . . Robots Corrupted . | . . . Combat Hostiles . | . . . Parts Fried . | . . . Impact Corruptions . | . . . Robots Melted . | . . . Combat Hostiles . | . . . Parts Melted 2 | . 1 1 Heat Transferred 1275 | . 825 450 Parts Sabotaged . | . . . Parts Stolen . | . . . Parts Stripped . | . . . Power Chain Reactions . | . . . Missiles Intercepted . | . . . Alert | -11 -10 -9 ------- Run | Scr Mat Mat Peak Influence 787 | . 277 787 Initial 53 | . . 53 Average 176 | . 106 320 Maximum Alert Level 3 | . 1 3 Low Security (%) 70 | 100 78 52 Level 1 15 | . 21 5 Level 2 11 | . . 34 Level 3 2 | . . 7 Level 4 . | . . . Level 5 . | . . . High Security . | . . . Max Security . | . . . Squads Dispatched 5 | . 1 4 Investigation . | . . . Extermination . | . . . Reinforcement 5 | . 1 4 Assault . | . . . Garrison . | . . . Intercept . | . . . Searches Triggered . | . . . Construction Impeded . | . . . Haulers Reinforced . | . . . Active Scanning Responses . | . . . Cargo Convoy Interrupts . | . . . Stealth | -11 -10 -9 --------- Run | Scr Mat Mat Distress Signals 3 | . . 3 Communications Jammed . | . . . Distress Signals . | . . . Times Spotted 46 | . 22 24 Peak Tracking Total 6 | . 4 6 Tactical Retreats 2 | . 2 . Traps | -11 -10 -9 ------- Run | Scr Mat Mat Traps Triggered 2 | . 2 . Indirectly . | . . . Trap Hack Attempts . | . . . Triggered . | . . . Disarmed 4 | . 4 . Reprogrammed . | . . . Reused . | . . . Traps Extracted . | . . . Installed . | . . . Triggered . | . . . Machines | -11 -10 -9 ---------- Run | Scr Mat Mat Machines Disabled 5 | . . 5 Max in Single Turn 1 | . . 1 Machines Sabotaged . | . . . Garrisons Compromised . | . . . Overloaded Fab Kills . | . . . Hacking | -11 -10 -9 --------- Run | Scr Mat Mat Machines Accessed 5 | . 5 . Terminals 5 | . 5 . Fabricators . | . . . Repair Stations . | . . . Recycling Units . | . . . Scanalyzers . | . . . Garrison Access . | . . . Total Hacks 17 | . 17 . Successful 9 | . 9 . Failed 8 | . 8 . Catastrophic 2 | . 2 . Database Lockouts . | . . . Manual 14 | . 14 . Terminals 17 | . 17 . Fabricators . | . . . Repair Stations . | . . . Recycling Units . | . . . Scanalyzers . | . . . Garrison Access . | . . . Terminal Hacks 5 | . 5 . Record 2 | . 2 . Locate Traps 1 | . 1 . Disarm Traps 1 | . 1 . Hauler Manifests 1 | . 1 . Fabricator Hacks . | . . . Repair Station Hacks . | . . . Recycling Unit Hacks . | . . . Scanalyzer . | . . . Garrison Access Hacks . | . . . Unauthorized Hacks 4 | . 4 . Terminals 4 | . 4 . Botnet 4 | . 4 . Fabricators . | . . . Repair Stations . | . . . Recycling Units . | . . . Scanalyzers . | . . . Garrison Access . | . . . Data Cores Recovered . | . . . Used . | . . . Hacking Detections 5 | . 5 . Full Trace Events 1 | . 1 . Feedback Events . | . . . Feedback Blocked . | . . . Robot Schematics Acquired . | . . . Robots Built . | . . . Authchips . | . . . Time . | . . . Total Robot Build Rating . | . . . Part Schematics Acquired . | . . . Parts Built . | . . . Authchips . | . . . Time . | . . . Total Part Build Rating . | . . . Parts Repaired . | . . . Time . | . . . Parts Recycled . | . . . Recycled Matter . | . . . Retrieved Matter . | . . . Retrieved Components . | . . . Parts Scanalyzed . | . . . Part Schematics Acquired . | . . . Parts Damaged . | . . . Bothacking | -11 -10 -9 ------------ Run | Scr Mat Mat Used RIF Installer . | . . . Robots Hacked . | . . . Non-combat . | . . . Combat . | . . . Robot Hacks Applied . | . . . Relay Couplers Released . | . . . Fabnet Peak Effective % . | . . . Robots Rewired . | . . . Allies Hacked . | . . . Hacks Repelled . | . . . Allies | -11 -10 -9 -------- Run | Scr Mat Mat Total Allies . | . . . Largest Group . | . . . Highest-Rated Group . | . . . Highest-Rated Ally . | . . . Total Orders . | . . . Ally Attacks . | . . . Total Damage . | . . . Kills . | . . . Allies Corrupted . | . . . Allies Melted . | . . . Intel | -11 -10 -9 ------- Run | Scr Mat Mat Robot Analysis Total . | . . . Derelict Logs Recovered . | . . . Drone Launches . | . . . Drone Recoveries . | . . . Exploration | -11 -10 -9 ------------- Run | Scr Mat Mat Turns Passed 1307 | 1 878 428 Spaces Moved 748 | 1 525 222 Core 46 | . 1 45 Treads . | . . . Legs 702 | 1 524 177 Wheels . | . . . Hover . | . . . Flight . | . . . Fastest Speed 100 | 120 120 100 Average Speed 120 | 120 120 122 Slowest Speed 200 | 120 200 190 Overloaded Moves . | . . . Propulsion Burnouts . | . . . Robots Hopped . | . . . Cave-ins Triggered . | . . . Exploration Rate (%) 37 | 2 75 34 Regions Visited 2 Branch Regions . Pre-discovered Areas . | . . . Known Exits Taken . | . . . Unknown Exits Taken 2 | 1 1 . Scrap Searched . | . . . Spaces Dug . | . . . Terrain Destroyed 156 | . 23 133 Melee . | . . . Projectile . | . . . AOE 156 | . 23 133 Terrain Rammed . | . . . Walls Destroyed . | . . . Machines Disabled . | . . . Actions | -11 -10 -9 --------- Run | Scr Mat Mat Total 981 | 2 665 314 Wait 87 | . 53 34 Move 746 | . 524 222 Hop . | . . . Pick Up 9 | . 6 3 Fast Attach 10 | . 6 4 Attach 10 | . 1 9 Detach . | . . . Swap 7 | . 5 2 Drop 8 | 2 6 . Fire 103 | . 64 39 Melee . | . . . Ram . | . . . Kick 1 | . . 1 Crush . | . . . Escape Stasis . | . . . Rewire . | . . . Trap . | . . . Miscellaneous . | . . . Route ------- -11/Scrapyard -10/Materials (discovered 4 exits: [*Mat x2] / [*Min x2]) -9/Materials History --------- Turn | Location | Event 2 | -11/Scrapyard | Discovered new exit (range 0) 2 | -11/Scrapyard | Entered Materials 2 | -10/Materials | Discovered new exit (range 8) 45 | -10/Materials | Discovered new exit (range 12) 271 | -10/Materials | Discovered new exit (range 15) 302 | -10/Materials | Build established: Mutant 698 | -10/Materials | Core integrity fell below 50% 848 | -10/Materials | Discovered new exit (range 15) 880 | -10/Materials | Entered another Materials area 880 | -9/Materials | Evolved 2 slots: Propulsion x2 1089 | -9/Materials | Lost 8 parts (1p4n3w) 1236 | -9/Materials | Lost 4 parts (1p2n1u) 1253 | -9/Materials | Core integrity fell below 50% 1308 | -9/Materials | Self-destructed Last Messages --------------- 01245_ K-01 Serf collects debris. 01247_ O-16 Technician: "IFF HANDSHAKE FAILED. SECURING TERMINAL." 01248_ O-16 Technician uses terminal to summon reinforcements. 01248_ ALERT: Hostiles spotted, dispatching reinforcements to Terminal M011. 01248_ O-16 Technician locks terminal. 01250_ G-34 Mercenary destroyed. 01250_ Integration Channel disabled. 01252_ Mni. Grenade Launcher destroyed. 01253_ The unstable cave ceiling collapses. 01253_ K-01 Serf collects debris. 01255_ The unstable cave ceiling collapses. 01256_ K-01 Serf destroyed. 01257_ The unstable cave ceiling collapses. 01257_ K-01 Serf collects debris. 01265_ Acquired 38 matter. 01272_ Atomic Centrifuge disabled. 01273_ K-01 Serf collects debris. 01301_ Acquired Imp. Ion Engine. 01302_ Aluminum Leg destroyed. Map ----- +----------------------------------------------------+ | ??????# "" ## # ## | | ??????# "" ###### #? | | ??????#[ #????# ##? | | ??????# ##???# " #?? | | ??????# "" #???# """ #?? | | ??????# """ #???# """ " " #?? | | ??????# "" ##???# """ "R" #?? | | ??????+ ##??# """ #?? | | ??????# #??#?? #?? | | ??????## #????#####?###?? | | ???????# #### #??????????????? | | ???????#????# ###??????????????? | | ????????????# """ #????????????????? | | ????????????# """ #????????????????? | | ????????????# """ #????????????????? | | ????????????# #????????????????? | | ????????????# #????????????????? | | ????????????+ ##+########????????????? | | ????????????# # #????????????? | | ?????????#### #= #????????????? | | ?????????# # #????????????? | | ?????????# / #????????????? | | ?????#######+#############????????????? | | ?????# g #??????????????????? | | ?????# """ """g""" #??????????????????? | | ?????# """ """@""" #??????????????????? | | ?????# """ """ """ #??????????????????? | | ?????# l #??????????????????? | | ?????# #??????????????????? | | ?????###############??????????????????? | | | | | | | | | | | | | | | | | | | | | | | | | | | | | | | | | | | | | | | | | +----------------------------------------------------+ Best States ------------- Heat Dissipation 28 Energy Generation 10 Energy Capacity 250 Matter Stores 300 Matter Capacity 300 Sight Range 16 Terrain Scan Density 10 Armor Coverage 225 Propulsion Shielding 33 Evasion (%) 55 Item Schematics ----------------- None Robot Schematics ------------------ None Fabricated ------------ Nothing Alien Tech Used ----------------- None Achievements -------------- None Challenges ------------ None Game ------ Seed HardcellSpectralLance Manual? 0 Play Time 00:13:50 Cumulative 37.0 hours Start 2022.06.24 @ 17:15:17 End 2022.06.24 @ 17:42:17 Sessions 5 Manual Loads 0 Difficulty Rogue Special Mode None Game No. 62 Rogue 62 Adventurer 0 Explorer 0 Win Type - Total 0 Types 0/0/0/0/0/0/0/0/0 Lore% 26 Gallery% 30 Achievement% 27 Wizard Run 0 Options --------- ASCII 0 Keyboard 1 Movement Vi Keybinds 1 Fullscreen 1 Font 24/Smallcaps Map View 76x50 Tactical HUD 1 Map Filters NONE Filters NONE Steam 1 RUN: 2010e316-6997-43de-8161-85f7f5a34862